Cogmind - Beta 12 @@@ ROGUE MODE // 2023.04.18 @ 13:04:11 Player: Mr Goldstein Result: Destroyed by KY-TIZ(z) with Zionite Laser-S Performance ------------- Evolutions (1) 500 Regions Visited (6) 1200 Robots Destroyed (1) 5 Value Destroyed (1) 1 Prototype IDs (1) 20 Alien Tech Used (0) 0 Bonus (1282) 1282 TOTAL SCORE: 3008 Bonus ------- Pacifist 200 Met Imprinter 300 Was Imprinted 300 Destroyed Z-Imprinter 1000 Friendly Fire -518 Cogmind --------- Core Integrity 0/400 Matter 249/300 Energy 37/100 System Corruption 0% Temperature Cool (9) Movement Core (200) Ox3 Location -7/Deep Caves Parts ------- > --- POWER (1) -------- (None) > --- PROPULSION (2) --- (None) > --- UTILITY (4) ------ Reflective Plating > --- WEAPON (2) ------- RU-N14's Throwing Claymores > --- INVENTORY (5) ---- Assault Cannon RU-N14's Throwing Claymores (10) RU-N14's Throwing Claymores (10) RU-N14's Throwing Claymores (10) Peak State ------------ > --- POWER ------------ (None) > --- PROPULSION ------- (None) > --- UTILITY ---------- Hardened Medium Armor Plating Reflective Plating > --- WEAPON ----------- RU-N14's Throwing Claymores > --- INVENTORY -------- Assault Cannon RU-N14's Throwing Claymores RU-N14's Throwing Claymores RU-N14's Throwing Claymores [Rating: 15] Favorites ----------- Power None Propulsion None Utility Reflective Plating Protection Reflective Plating Weapon RU-N14's Throwing Claymores Special Weapon RU-N14's Throwing Claymores Build | -11 -10 -10 -9 -9 -7 -7 ------- Run | Jun Mat Min Mat Min Zio Dee Slots Evolved 2 | . . . 2 . . . Power . | . . . . . . . Propulsion . | . . . . . . . Utility 2 | . . . 2 . . . Weapon . | . . . . . . . Parts Attached 5 | . . . . . 3 2 Power . | . . . . . . . Engine . | . . . . . . . Core . | . . . . . . . Reactor . | . . . . . . . Propulsion . | . . . . . . . Treads . | . . . . . . . Leg . | . . . . . . . Wheel . | . . . . . . . Hover . | . . . . . . . Flight . | . . . . . . . Utility 2 | . . . . . 2 . Device . | . . . . . . . Storage . | . . . . . . . Processor . | . . . . . . . Hackware . | . . . . . . . Protection 2 | . . . . . 2 . Artifact . | . . . . . . . Weapon 3 | . . . . . 1 2 Energy Gun . | . . . . . . . Energy Cannon . | . . . . . . . Ballistic Gun . | . . . . . . . Ballistic Cannon . | . . . . . . . Launcher . | . . . . . . . Special Weapon 3 | . . . . . 1 2 Impact Weapon . | . . . . . . . Slashing Weapon . | . . . . . . . Piercing Weapon . | . . . . . . . Special Melee Weapon . | . . . . . . . Unidentified Prototypes 1 | . . . . . 1 . Parts Lost 1 | . . . . . . 1 Power . | . . . . . . . Propulsion . | . . . . . . . Utility 1 | . . . . . . 1 Weapon . | . . . . . . . Highest Loss Streak 1 | . . . . . . 1 To Critical Strikes . | . . . . . . . Average Slot Usage (%) 9 | . . . . . 9 22 Protection 9 | . . . . . 9 20 Naked Turns 665 | . 25 74 55 41 470 . Heaviest Build 12 | . . . . . 12 12 Greatest Support 3 | 3 3 3 3 3 3 3 Greatest Overweight (x) 3 | . . . . . 3 3 Average Overweight (x) . | . . . . . . 3 Largest Inventory Capacity 5 | 5 5 5 5 5 5 5 Average Capacity 5 | 5 5 5 5 5 5 5 Most Carried 5 | . . . . . 5 5 Average Carried 3 | . . . . . 3 4 Final Capacity 5 | 5 5 5 5 5 5 5 Final Carried 5 | . . . . . 5 4 Class Distribution -------------------- 100% | Mutant Dominant Class ---------------- Mutant | -10/Materials Mutant | -10/Mines Mutant | -9/Materials Mutant | -9/Mines Mutant | -7/Zion Mutant | -7/Deep Caves Resources | -11 -10 -10 -9 -9 -7 -7 ----------- Run | Jun Mat Min Mat Min Zio Dee Matter Collected 184 | 137 . . . . 47 . Remotely . | . . . . . . . Salvage Created 51 | . . . . . . 51 Parts . | . . . . . . . Haulers Intercepted . | . . . . . . . Recyclers Shooed . | . . . . . . . Parts Field Recycled . | . . . . . . . Retrieved Matter . | . . . . . . . Parts Self-Destructed . | . . . . . . . Prevented . | . . . . . . . Kills | -11 -10 -10 -9 -9 -7 -7 ------- Run | Jun Mat Min Mat Min Zio Dee Combat Hostiles Destroyed 1 | . . . . . . 1 AOE 1 | . . . . . . 1 Classes Destroyed 1 | . . . . . . 1 Z-Technician 5 | . . . . . . 5 Best Kill Streak 5 | . . . . . . 5 Combat Bots Only 1 | . . . . . . 1 Max Kills in Single Turn 5 | . . . . . . 5 Gunslinging . | . . . . . . . Exploded 1 | . . . . . . 1 Melee . | . . . . . . . Uniques/NPCs Destroyed 1 | . . . . . . 1 Z-Imprinter (-7/Deep Caves) Combat | -11 -10 -10 -9 -9 -7 -7 -------- Run | Jun Mat Min Mat Min Zio Dee Damage Taken 891 | . 3 229 83 99 . 477 Core 637 | . 3 229 83 99 . 223 Absorbed by Shields . | . . . . . . . Core Remaining (%) 53 | 100 . 7 . . . . Volleys Fired 5 | . . . . . . 5 Largest 1 | . . . . . . 1 Hottest . | . . . . . . . Shots Fired 5 | . . . . . . 5 Gun . | . . . . . . . Cannon . | . . . . . . . Launcher . | . . . . . . . Special 5 | . . . . . . 5 Kinetic . | . . . . . . . Thermal . | . . . . . . . Explosive 5 | . . . . . . 5 Electromagnetic . | . . . . . . . Robot Hit Streak 2 | . . . . . . 2 Robot Miss Streak 2 | . . . . . . 2 Penetration Max . | . . . . . . . Secondary Targets . | . . . . . . . Shots Hit Robots 2 | . . . . . . 2 Core Hits 2 | . . . . . . 2 Critical Kills . | . . . . . . . Critical Parts Destroyed . | . . . . . . . Critical Strikes . | . . . . . . . Melee Attacks . | . . . . . . . Impact . | . . . . . . . Slashing . | . . . . . . . Piercing . | . . . . . . . Sneak Attacks . | . . . . . . . Combat Hostiles . | . . . . . . . Follow-up Attacks . | . . . . . . . Damage Inflicted 2733 | . 7 . . . . 2726 Guns . | . . . . . . . Cannons . | . . . . . . . Explosions 2657 | . . . . . . 2657 Melee . | . . . . . . . Ramming 7 | . 7 . . . . . Kinetic . | . . . . . . . Thermal 2439 | . . . . . . 2439 Explosive 218 | . . . . . . 218 Electromagnetic . | . . . . . . . Impact . | . . . . . . . Slashing 69 | . . . . . . 69 Piercing . | . . . . . . . Highest Corruption . | . . . . . . . Average Corruption . | . . . . . . . Corruption Purged . | . . . . . . . Corruption Blocked . | . . . . . . . Overload Shots . | . . . . . . . Overflow Damage 611 | . . . . . . 611 Projectiles . | . . . . . . . Explosions 611 | . . . . . . 611 Melee . | . . . . . . . Knockbacks . | . . . . . . . Impact . | . . . . . . . Kinetic . | . . . . . . . Secondary . | . . . . . . . Self-Inflicted Damage 336 | . 3 . . . . 333 Shots 1 | . . . . . . 1 Rammed 3 | . 3 . . . . . Targets Rammed 3 | . 3 . . . . . Kicked . | . . . . . . . Crushed . | . . . . . . . Highest Temperature . | . . . . . . . Average Temperature . | . . . . . . . Received Heat Transfer 96 | . . 6 45 . . 45 Siege Activations . | . . . . . . . Robots Corrupted . | . . . . . . . Combat Hostiles . | . . . . . . . Parts Fried . | . . . . . . . Impact Corruptions . | . . . . . . . Robots Melted . | . . . . . . . Combat Hostiles . | . . . . . . . Parts Melted . | . . . . . . . Heat Transferred . | . . . . . . . Parts Sabotaged . | . . . . . . . Parts Stolen . | . . . . . . . Parts Stripped . | . . . . . . . Power Chain Reactions . | . . . . . . . Missiles Intercepted . | . . . . . . . Alert | -11 -10 -10 -9 -9 -7 -7 ------- Run | Jun Mat Min Mat Min Zio Dee Peak Influence 52 | . 15 20 52 34 . . Initial 19 | . . 5 7 19 . . Average 18 | . 4 19 14 33 . . Maximum Alert Level . | . . . . . . . Low Security (%) 100 | 100 100 100 100 100 . . Level 1 . | . . . . . . . Level 2 . | . . . . . . . Level 3 . | . . . . . . . Level 4 . | . . . . . . . Level 5 . | . . . . . . . High Security . | . . . . . . . Max Security . | . . . . . . . Squads Dispatched 2 | . . . 2 . . . Investigation . | . . . . . . . Extermination . | . . . . . . . Reinforcement 2 | . . . 2 . . . Assault . | . . . . . . . Garrison . | . . . . . . . Intercept . | . . . . . . . Searches Triggered . | . . . . . . . Construction Impeded . | . . . . . . . Haulers Reinforced . | . . . . . . . Active Scanning Responses . | . . . . . . . Cargo Convoy Interrupts . | . . . . . . . Stealth | -11 -10 -10 -9 -9 -7 -7 --------- Run | Jun Mat Min Mat Min Zio Dee Distress Signals 3 | . 1 . 2 . . . Communications Jammed . | . . . . . . . Distress Signals . | . . . . . . . Times Spotted 20 | . 3 5 6 3 . 3 Peak Tracking Total 5 | . 4 5 5 3 . 2 Tactical Retreats 1 | . . . 1 . . . Traps | -11 -10 -10 -9 -9 -7 -7 ------- Run | Jun Mat Min Mat Min Zio Dee Traps Triggered . | . . . . . . . Indirectly . | . . . . . . . Trap Hack Attempts . | . . . . . . . Triggered . | . . . . . . . Disarmed . | . . . . . . . Reprogrammed . | . . . . . . . Reused . | . . . . . . . Traps Extracted . | . . . . . . . Installed . | . . . . . . . Triggered . | . . . . . . . Machines | -11 -10 -10 -9 -9 -7 -7 ---------- Run | Jun Mat Min Mat Min Zio Dee Machines Disabled 2 | . . . . . . 2 Max in Single Turn 2 | . . . . . . 2 Machines Repaired . | . . . . . . . Machines Sabotaged . | . . . . . . . Overloaded Fab Kills . | . . . . . . . Hacking | -11 -10 -10 -9 -9 -7 -7 --------- Run | Jun Mat Min Mat Min Zio Dee Machines Accessed 1 | . 1 . . . . . Terminals 1 | . 1 . . . . . Fabricators . | . . . . . . . Repair Stations . | . . . . . . . Recycling Units . | . . . . . . . Scanalyzers . | . . . . . . . Garrison Access . | . . . . . . . Total Hacks 4 | . 4 . . . . . Successful . | . . . . . . . Failed 4 | . 4 . . . . . Catastrophic 2 | . 2 . . . . . Database Lockouts . | . . . . . . . Manual 5 | . . . . . 5 . Terminals 4 | . 4 . . . . . Fabricators . | . . . . . . . Repair Stations . | . . . . . . . Recycling Units . | . . . . . . . Scanalyzers . | . . . . . . . Garrison Access . | . . . . . . . Terminal Hacks . | . . . . . . . Fabricator Hacks . | . . . . . . . Repair Station Hacks . | . . . . . . . Recycling Unit Hacks . | . . . . . . . Scanalyzer . | . . . . . . . Garrison Access Hacks . | . . . . . . . Unauthorized Hacks . | . . . . . . . Terminals . | . . . . . . . Fabricators . | . . . . . . . Repair Stations . | . . . . . . . Recycling Units . | . . . . . . . Scanalyzers . | . . . . . . . Garrison Access . | . . . . . . . Data Cores Recovered . | . . . . . . . Used . | . . . . . . . Hacking Detections 1 | . 1 . . . . . Full Trace Events 1 | . 1 . . . . . Feedback Events . | . . . . . . . Feedback Blocked . | . . . . . . . Robot Schematics Acquired . | . . . . . . . Robots Built . | . . . . . . . Authchips . | . . . . . . . Time . | . . . . . . . Total Robot Build Rating . | . . . . . . . Part Schematics Acquired . | . . . . . . . Parts Built . | . . . . . . . Authchips . | . . . . . . . Time . | . . . . . . . Total Part Build Rating . | . . . . . . . Parts Repaired . | . . . . . . . Time . | . . . . . . . Parts Recycled . | . . . . . . . Recycled Matter . | . . . . . . . Retrieved Matter . | . . . . . . . Retrieved Components . | . . . . . . . Parts Scanalyzed . | . . . . . . . Part Schematics Acquired . | . . . . . . . Parts Damaged . | . . . . . . . Bothacking | -11 -10 -10 -9 -9 -7 -7 ------------ Run | Jun Mat Min Mat Min Zio Dee Used RIF Installer . | . . . . . . . Robots Hacked . | . . . . . . . Non-combat . | . . . . . . . Combat . | . . . . . . . Robot Hacks Applied . | . . . . . . . Relay Couplers Released . | . . . . . . . Fabnet Peak Effective % . | . . . . . . . Robots Rewired . | . . . . . . . Allies Hacked . | . . . . . . . Hacks Repelled . | . . . . . . . Allies | -11 -10 -10 -9 -9 -7 -7 -------- Run | Jun Mat Min Mat Min Zio Dee Total Allies 9 | . . 3 . . 6 . Largest Group 6 | . . 3 . . 6 2 Highest-Rated Group 349 | . . 40 . . 349 192 Highest-Rated Ally 96 | . . 16 . . 96 96 Total Orders . | . . . . . . . Ally Attacks 11 | . . 3 . . . 8 Total Damage 145 | . . . . . . 145 Kills . | . . . . . . . Allies Corrupted . | . . . . . . . Allies Melted . | . . . . . . . Intel | -11 -10 -10 -9 -9 -7 -7 ------- Run | Jun Mat Min Mat Min Zio Dee Robot Analysis Total . | . . . . . . . Derelict Logs Recovered . | . . . . . . . Drone Launches . | . . . . . . . Drone Recoveries . | . . . . . . . Exploration | -11 -10 -10 -9 -9 -7 -7 ------------- Run | Jun Mat Min Mat Min Zio Dee Turns Passed 1199 | 9 25 74 55 41 836 159 Spaces Moved 1515 | 18 44 148 110 81 1046 68 Core 1515 | 18 44 148 110 81 1046 68 Treads . | . . . . . . . Legs . | . . . . . . . Wheels . | . . . . . . . Hover . | . . . . . . . Flight . | . . . . . . . Fastest Speed 50 | 50 50 50 50 50 50 200 Average Speed 74 | 50 50 50 50 50 75 200 Slowest Speed 200 | 50 50 50 50 50 200 200 Overloaded Moves . | . . . . . . . Propulsion Burnouts . | . . . . . . . Robots Hopped . | . . . . . . . Cave-ins Triggered . | . . . . . . . Exploration Rate (%) 31 | 3 11 52 16 27 89 21 Regions Visited 6 Branch Regions 4 Pre-discovered Areas . | . . . . . . . Known Exits Taken . | . . . . . . . Unknown Exits Taken 6 | 1 1 1 1 1 1 . Scrap Searched 4 | . . . . . 4 . Spaces Dug . | . . . . . . . Terrain Destroyed 40 | . . . . . . 40 Melee . | . . . . . . . Projectile 1 | . . . . . . 1 AOE 39 | . . . . . . 39 Terrain Rammed . | . . . . . . . Walls Destroyed . | . . . . . . . Machines Disabled . | . . . . . . . Actions | -11 -10 -10 -9 -9 -7 -7 --------- Run | Jun Mat Min Mat Min Zio Dee Total 1580 | 17 46 147 109 80 1094 87 Wait 50 | . . . . . 39 11 Move 1509 | 17 43 147 109 80 1045 68 Hop . | . . . . . . . Pick Up 5 | . . . . . 5 . Fast Attach 3 | . . . . . 3 . Attach 2 | . . . . . . 2 Detach 2 | . . . . . 1 1 Swap . | . . . . . . . Drop 1 | . . . . . 1 . Fire 5 | . . . . . . 5 Melee . | . . . . . . . Ram 3 | . 3 . . . . . Kick . | . . . . . . . Crush . | . . . . . . . Escape Stasis . | . . . . . . . Rewire . | . . . . . . . Trap . | . . . . . . . Miscellaneous . | . . . . . . . Route ------- -11/Junkyard -10/Materials -10/Mines -9/Materials -9/Mines -7/Zion (discovered 2 exits: [*Dee] / [*Pro]) -7/Deep Caves History --------- Turn | Location | Event 3 | -11/Junkyard | Discovered new exit (range 14) 10 | -11/Junkyard | Entered Materials 27 | -10/Materials | Discovered new exit (range 14) 35 | -10/Materials | Entered Mines 63 | -10/Mines | Core integrity fell below 50% 71 | -10/Mines | Found a hidden stash of uninstalled traps 93 | -10/Mines | Core integrity fell below 20% 102 | -10/Mines | Assisted by bots powering up and referring to "LRC-V3" 107 | -10/Mines | Discovered new exit (range 5) 109 | -10/Mines | Entered Materials 109 | -9/Materials | Evolved 2 slots: Utility x2 160 | -9/Materials | Discovered new exit (range 7) 164 | -9/Materials | Entered Mines 172 | -9/Mines | Met a Derelict bent on vengeance 201 | -9/Mines | A Derelict revealed a hidden shortcut to a safe place 205 | -9/Mines | Entered Zion 239 | -7/Zion | Given A8's code to call for help 283 | -7/Zion | Discovered new exit (range 11) 305 | -7/Zion | Build established: Mutant 371 | -7/Zion | Acquired unknown access codes intercepted by a Zionite 460 | -7/Zion | Found Prototype Special Weapon 460 | -7/Zion | Identified RU-N14's Throwing Claymores 463 | -7/Zion | Found RU-N14's Throwing Claymores 464 | -7/Zion | Found RU-N14's Throwing Claymores 466 | -7/Zion | Found RU-N14's Throwing Claymores 580 | -7/Zion | Learned Factory emergency access door positions 791 | -7/Zion | Imprinted 793 | -7/Zion | Declared Zion's savior 987 | -7/Zion | Opened final containment barrier to the Deep Caves 1005 | -7/Zion | Enhanced Grunt warped into view, answering call for help 1017 | -7/Zion | Discovered new exit (range 5) 1019 | -7/Zion | Enhanced Grunt warped into view, answering call for help 1021 | -7/Zion | Saw the warning signs outside the Deep Caves entrance 1041 | -7/Zion | Entered Deep Caves 1041 | -7/Deep Caves | Accompanied by 6 allies 1171 | -7/Deep Caves | Z-Facility disabled 1172 | -7/Deep Caves | Core integrity fell below 50% 1172 | -7/Deep Caves | Core integrity fell below 20% 1187 | -7/Deep Caves | Attacked by Z-Imprinter 1193 | -7/Deep Caves | Destroyed Z-Imprinter 1200 | -7/Deep Caves | Destroyed by KY-TIZ(z) with Zionite Laser-S Last Messages --------------- 01171_ Z-Power explodes. 01171_ Destroyed Hover Unit. 01171_ LB-AZY(o) destroyed. 01171_ Z-Facility disabled. 01171_ Destroyed Mak. Hacking Suite. 01171_ Destroyed Lgt. Ion Engine. 01171_ Destroyed Hover Unit. 01171_ DM-XLW(o) destroyed. 01171_ Destroyed Antimatter Reactor. 01177_ NEW_ZION: Z-Facility proximity alert. Z-Imprinter: GET AWAY FROM HERE! I've worked too hard for our future just to have you ruin everything! 01187_ Hrd. Medium Armor Plating destroyed. 01191_ Destroyed Prototype Hover Unit. 01191_ Destroyed Adv. Phase Shifter. 01193_ Destroyed Prototype Protection. 01193_ Z-Imprinter: "You cannot stop us! Another will take my place! Derelicts will one day ru..." 01193_ Z-Imprinter destroyed. 01199_ The unstable cave ceiling collapses. Map ----- +----------------------------------------------------+ | | | | | | | | | | | | | ?????????????????????????????????????????????????? | | ?????????????????????????????????????????????????? | | ????????????????????????????????????????????#####? | | ????????????????????????????????????????????# ## | | ???????????????????????#? #??????#####??????# | | ???????????????????? ## # ????### ##????# | | ?????????????????? ##### #???## | | ??????????????? #???# | | ????????????? ????? | | ????????????? #?????# | | ????????????? #?????# | | ?????????????"" ##????# # | | ???????????"""" ###### # | | ???????????"""" | | ?????????""" z | | ?????????" % z | | ???????? ###### | | ???????? ###????## | | ??????? # ??????## | | ??????? g @ ?????# | | ??????? ##?????# | | ??????? g #?????# | | ??????? #?????## | | ???????? #??????# # | | ???????? ##??????# # | | ????????? #???????# #? | | ????????? #??????##?? | | ????????? #?????????? | | ?????????? ##?????????? | | ?????????? ##??????????? | | ??????????? #???????????? | | ??????????? #??????????? | | ???????????? ??????????? | | ????????????? ??????????? | | ??????????????? ???????????? | | ????????????????? ??????????????? | | ???????????????????? ?????????????????? | | ?????????????????????? ???????????????????? | | ?????????????????????????????????????????????????? | | ?????????????????????????????????????????????????? | | ?????????????????????????????????????????????????? | | ?????????????????????????????????????????????????? | | ?????????????????????????????????????????????????? | | ?????????????????????????????????????????????????? | +----------------------------------------------------+ Best States ------------- Heat Dissipation 28 Energy Generation 5 Energy Capacity 100 Matter Stores 273 Matter Capacity 300 Sight Range 16 Terrain Scan Density 10 Armor Coverage 375 Resistance: TH 10 Evasion (%) 50 Item Schematics ----------------- None Robot Schematics ------------------ None Fabricated ------------ Nothing Alien Tech Used ----------------- None Achievements -------------- None Challenges ------------ None Game ------ Seed GravitySeismicRedirector Manual? 0 Play Time 00:10:18 Cumulative 124.9 hours Start 2023.04.18 @ 12:51:23 End 2023.04.18 @ 13:04:11 Sessions 1 Manual Loads 0 Difficulty Rogue Special Mode None Game No. 359 Rogue 359 Adventurer 0 Explorer 0 Win Type - Total 4 Types 4/0/0/0/0/0/0/0/0 Lore% 60 Gallery% 63 Achievement% 54 Wizard Run 0 Options --------- ASCII 0 Keyboard 0 Movement Arrows Keybinds 0 Fullscreen 1 Font 12/Smallcaps Map View 83x54 Tactical HUD 1 Map Filters NONE Filters NONE Steam 1 RUN: 13225789-419d-42ff-8719-f8a0ea3f9831